fUSD/lending_fUSD_20260127
["ID","MTS","AMOUNT","RATE_DAILY","PERIOD"]
[403807392,1769546030994,-500.0,0.00043367,120]
[403807393,1769546031069,-500.0,0.00043367,120]
[403807394,1769546031140,-500.0,0.00043367,120]
[403807395,1769546031210,-500.0,0.00043367,120]
[403807396,1769546031283,-500.0,0.00043367,120]
[403807397,1769546031352,-500.0,0.00043367,120]
[403807398,1769546031431,-500.0,0.00043367,120]
[403807399,1769546031502,-508.55277377,0.00043367,120]
[403807400,1769546031571,-500.0,0.00043367,120]
[403807401,1769546031641,-535.5266281,0.00043367,120]
[403807402,1769546031714,-500.0,0.00043367,120]
[403807403,1769546031785,-500.0,0.00043367,120]
[403807404,1769546031856,-500.0,0.00043367,120]
[403807405,1769546031927,-500.0,0.00043367,120]
[403807406,1769546031999,-500.0,0.00043367,120]
[403807407,1769546032075,-500.0,0.00043367,120]
[403807408,1769546032150,-503.83887633,0.00043367,120]
[403807409,1769546032221,-500.0,0.00043367,120]
[403807410,1769546032293,-500.0,0.00043367,120]
[403807411,1769546032365,-500.0,0.00043367,120]
[403807412,1769546032436,-252.05687006,0.00043367,120]
[403807413,1769546032507,-500.0,0.00043367,120]
[403807414,1769546032578,-500.0,0.00043367,120]
[403807415,1769546032661,-536.42539784,0.00043367,120]
[403807416,1769546032737,-500.0,0.00043367,120]
[403807417,1769546032811,-500.0,0.00043367,120]
[403807418,1769546032884,-500.0,0.00043367,120]
[403807419,1769546032961,-533.729321,0.00043367,120]
[403807420,1769546033035,-500.0,0.00043367,120]
[403807421,1769546033110,-550.75456235,0.00043367,120]
[403807422,1769546033182,-447.37186169,0.00043367,30]
[403807423,1769546033256,-5885.87991491,0.00043367,30]
[403807424,1769546033330,-543.30512006,0.00043367,30]
[403807425,1769546033405,-406.21108034,0.00043367,30]
[403807426,1769546033478,-4833122.36803075,0.00043367,120]
[403807427,1769546033552,-506.08256521,0.00043367,91]
[403807428,1769546033628,-500.0,0.00043367,120]
[403807429,1769546033707,-500.0,0.00043367,120]
[403807430,1769546033791,-500.0,0.00043367,120]
[403807431,1769546033876,-500.0,0.00043367,120]
[403807432,1769546033953,-500.0,0.00043367,120]
[403807433,1769546034037,-167491.37581685,0.00043367,30]
[403807434,1769546062440,166.66,0.00015308,2]
[403807435,1769546062697,168.19,0.00012731,2]
[403807436,1769546063974,254.0,0.00012731,2]
[403807437,1769546072323,158.66,0.00015078,2]
[403807438,1769546073153,1074.84,0.00015036,2]
[403807439,1769546076406,250.0,0.00014812,2]
[403807440,1769546081124,2439.73766377,0.0001399,2]
[403807441,1769546090825,251.51442999,0.00014642,2]
[403807442,1769546091814,-150.0196112,0.00015448,2]
[403807443,1769546091835,-1104.0,0.000156,2]
[403807444,1769546091856,-166.66,0.0001563,2]
[403807445,1769546091880,-1284.30638271,0.00015644,2]
[403807446,1769546092813,254.0,0.00012731,2]
[403807447,1769546094315,-501.0,0.00015644,2]
[403807448,1769546094333,-15402.80817995,0.00015644,2]
[403807449,1769546094344,-4215.19804651,0.00015644,2]
[403807450,1769546094355,-57422.77982509,0.00015644,2]
[403807451,1769546094369,-8541.35673946,0.00015644,2]
[403807452,1769546094380,-39009.64504442,0.00015644,2]
[403807453,1769546094395,-4717.07066493,0.00015644,2]
[403807454,1769546094408,-1450.71310277,0.00015644,2]
[403807455,1769546094419,-280.0,0.00015644,2]
[403807456,1769546094431,-1157.04799734,0.00015644,2]
[403807457,1769546094443,-257.8752,0.00015644,2]
[403807458,1769546094453,-2168.45160295,0.00015644,2]
[403807459,1769546094719,-1139.97075209,0.00015644,2]
[403807460,1769546094730,-5205.62314542,0.00015644,2]
[403807461,1769546094741,-6215.87249792,0.00015644,2]
[403807462,1769546094754,-12987.04402191,0.00015644,2]
[403807463,1769546094765,-16798.28452891,0.00015644,2]
[403807464,1769546094776,-7967.72470494,0.00015644,2]
[403807465,1769546094787,-10953.09439891,0.00015644,2]
[403807466,1769546094839,8023.2,0.00014826,2]
[403807467,1769546094924,-7968.61338269,0.00015644,2]
[403807468,1769546094936,-919.39818052,0.00015644,2]
[403807469,1769546094947,-1034.09033772,0.00015644,2]
[403807470,1769546094958,-333383.36845717,0.00015644,2]
[403807471,1769546094969,-425456.5957944,0.00015644,2]
[403807472,1769546094980,-3389.19645253,0.00015644,2]
[403807473,1769546094990,-536.24085885,0.00015644,2]
[403807474,1769546095002,-887.4292077,0.00015644,2]
[403807475,1769546095013,-21309.06284727,0.00015644,2]
[403807476,1769546095025,-7440.13764492,0.00015644,2]
[403807477,1769546095036,-515.15499384,0.00015646,2]
[403807478,1769546095046,-178.9576715,0.00015646,2]
[403807479,1769546095055,-500.0,0.00015743,2]
[403807480,1769546095064,-514.83889524,0.00015743,2]
[403807481,1769546095074,-500.0,0.00015743,2]
[403807482,1769546095083,-782.79,0.00015743,2]
[403807483,1769546095092,-500.0,0.00015743,2]
[403807484,1769546095102,-497.15,0.00015743,2]
[403807485,1769546095111,-500.0,0.00015743,2]
[403807486,1769546095120,-500.0,0.00015743,2]
[403807487,1769546095129,-500.0,0.00015743,2]
[403807488,1769546095138,-86.32419822,0.00015743,2]
[403807489,1769546095151,-214.27580178,0.00015743,2]
[403807490,1769546095160,-500.0,0.00015743,2]
[403807491,1769546095170,-500.0,0.00015743,2]
[403807492,1769546095180,-350.0,0.00015743,2]
[403807493,1769546095189,-172.05790811,0.00015743,2]
[403807494,1769546095200,-327.94209189,0.00015743,2]
[403807495,1769546095209,-500.0,0.00015743,2]
[403807496,1769546095218,-52.64937649,0.00015743,2]
[403807497,1769546095229,-447.35062351,0.00015743,2]
[403807498,1769546095238,-500.0,0.00015743,2]
[403807499,1769546095247,-500.0,0.00015743,2]
[403807500,1769546095257,-500.0,0.00015743,2]
[403807501,1769546095266,-500.0,0.00015743,2]
[403807502,1769546095275,-500.0,0.00015743,2]
[403807503,1769546095286,-500.0,0.00015743,2]
[403807504,1769546095296,-500.0,0.00015743,2]
[403807505,1769546095305,-500.0,0.00015743,2]
[403807506,1769546095314,-500.0,0.00015743,2]
[403807507,1769546095323,-500.0,0.00015743,2]
[403807508,1769546095333,-444.18483691,0.00015743,2]
[403807509,1769546095342,-185.9468105,0.00015743,2]
[403807510,1769546095351,-500.0,0.00015743,2]
[403807511,1769546095361,-147.90772908,0.00015743,2]
[403807512,1769546095478,-79.88846805,0.00015743,2]
[403807513,1769546095488,-280.76128795,0.00015743,2]
[403807514,1769546095497,-31.53923225,0.00015744,2]
[403807515,1769546095509,-468.46076775,0.00015744,2]
[403807516,1769546095518,-500.0,0.00015744,2]
[403807517,1769546095527,-500.0,0.00015744,2]
[403807518,1769546095539,-256.87903085,0.00015744,2]
[403807519,1769546095550,-243.12096915,0.00015744,2]
[403807520,1769546095559,-133.29628445,0.00015744,2]
[403807521,1769546095616,-280.19276154,0.00015631,2]
[403807522,1769546095627,-14110.00000018,0.00015631,2]
[403807523,1769546095638,-990.04282924,0.00015631,2]
[403807524,1769546095649,-384.22220303,0.00015631,2]
[403807525,1769546095660,-394.245,0.00015631,2]
[403807526,1769546095671,-8762.80565895,0.00015631,2]
[403807527,1769546095684,-6000.2941275,0.00015631,2]
[403807528,1769546098849,195.0,0.00014004,2]
[403807529,1769546102677,301.84,0.00014731,2]
[403807530,1769546105285,300.0,0.00014825,2]
[403807531,1769546114213,236.0,0.00015293,2]
[403807532,1769546116050,500.0,0.00014702,2]
[403807533,1769546117622,250.0,0.00014473,2]
[403807534,1769546120134,250.0,0.00014588,2]
[403807536,1769546300456,-1829.34499357,0.00015546,2]
[403807537,1769546300482,-500.0,0.00015546,2]
[403807538,1769546300508,-299.90520716,0.00015564,2]
[403807539,1769546300534,-300.0,0.00015629,2]
[403807540,1769546300561,-150.0007001,0.00015629,2]
[403807541,1769546300584,-186.22425074,0.0001563,2]
[403807542,1769546300608,-2558.5978423,0.00015631,2]
[403807543,1769546300633,-151.0,0.00015641,2]
[403807544,1769546300657,-1200.0,0.00015642,2]
[403807545,1769546300681,-300.0,0.00015643,2]
[403807546,1769546300705,-11430.4643,0.00015644,2]
[403807547,1769546300728,-5615.7995,0.00015644,2]
[403807548,1769546300756,-313578.66320613,0.00015644,2]
[403807549,1769546411840,3890.84,0.00012776,2]
[403807550,1769546493166,1476.492,0.00015331,2]
[403807551,1769546493292,186.223,0.00015331,2]
[403807552,1769546528011,166.66,0.00015175,2]
[403807554,1769546623993,2040.61,0.00014683,2]
[403807555,1769546722536,2908.78,0.00014704,2]
[403807556,1769546765098,7405.55,0.00014692,2]
[403807557,1769546792154,500.0,0.00015414,3]
[403807558,1769546792226,463.0,0.00015414,3]
[403807559,1769546792335,500.0,0.00015469,3]
[403807560,1769546792425,463.0,0.00015469,3]
[403807561,1769546792462,500.0,0.00015414,3]
[403807562,1769546792643,500.0,0.00015469,3]
[403807563,1769546795213,200.0,0.00015414,3]
[403807564,1769546795472,200.0,0.00015469,3]
[403807565,1769546796934,150.0,0.00015414,3]
[403807566,1769546797078,150.0,0.00015469,3]
[403807567,1769546797196,500.0,0.00015414,3]
[403807568,1769546797365,500.0,0.00015469,3]
[403807569,1769546797632,500.0,0.00015414,3]
[403807570,1769546797883,500.0,0.00015469,3]
[403807571,1769546798700,450.0,0.00015414,3]
[403807572,1769546798884,450.0,0.00015469,3]
[403807573,1769546799235,937.0,0.00015414,3]
[403807574,1769546799395,937.0,0.00015469,3]
[403807575,1769546799578,500.0,0.00015414,3]
[403807576,1769546799763,500.0,0.00015469,3]
[403807577,1769546799863,462.0,0.00015414,3]
[403807578,1769546800089,462.0,0.00015469,3]
[403807579,1769546802953,500.0,0.00015414,3]
[403807580,1769546803136,500.0,0.00015469,3]
[403807582,1769546809664,500.0,0.00015414,3]
[403807583,1769546809854,500.0,0.00015469,3]
[403807584,1769546812355,200.0,0.00014658,2]
[403807585,1769546815751,154.264362,0.00015414,3]
[403807586,1769546816462,150.0,0.00015414,3]
[403807587,1769546816539,483.0,0.00015414,3]
[403807588,1769546816707,483.0,0.00015469,3]
[403807589,1769546816741,150.0,0.00015469,3]
[403807592,1769546818670,430.0,0.00015414,3]
[403807593,1769546818707,430.0,0.00015469,3]
[403807594,1769546818746,500.0,0.00015414,3]
[403807595,1769546818786,500.0,0.00015469,3]
[403807596,1769546819616,150.0,0.00015414,3]
[403807597,1769546819798,150.0,0.00015469,3]
[403807598,1769546820850,682.0,0.00015414,3]
[403807599,1769546821009,682.0,0.00015469,3]
[403807600,1769546825183,500.0,0.00015414,3]
[403807601,1769546825375,500.0,0.00015469,3]
[403807602,1769546827279,500.0,0.00015414,3]
[403807603,1769546827435,500.0,0.00015469,3]
[403807604,1769546828141,635.0,0.00015414,3]
[403807605,1769546828398,500.0,0.00015414,3]
[403807606,1769546828432,635.0,0.00015469,3]
[403807607,1769546828639,500.0,0.00015469,3]
[403807608,1769546829699,505.0,0.00015414,3]
[403807609,1769546829826,505.0,0.00015469,3]
[403807610,1769546831425,150.0,0.00015414,3]
[403807611,1769546831620,150.0,0.00015469,3]
[403807612,1769546831857,500.0,0.00015414,3]
[403807613,1769546832077,500.0,0.00015469,3]
[403807618,1769546891432,200.0,0.00014632,2]
[403807619,1769546998834,1000.0,0.00014627,2]
[403807653,1769547031944,-425.0,0.0001537,2]
[403807654,1769547031953,-500.0,0.0001537,2]
[403807655,1769547031962,-150.0,0.00015414,2]
[403807656,1769547031971,-150.0,0.00015414,2]
[403807658,1769547031980,-500.0,0.00015414,2]
[403807660,1769547031990,-425.0,0.00015425,2]
[403807662,1769547032000,-500.0,0.00015425,2]
[403807664,1769547032009,-500.0,0.00015469,2]
[403807665,1769547032018,-425.0,0.0001548,2]
[403807666,1769547032027,-500.0,0.0001548,2]
[403807667,1769547032036,-309.94327877,0.000155,2]
[403807668,1769547032045,-300.0,0.0001551,2]
[403807669,1769547032055,-1200.0,0.0001551,2]
[403807670,1769547032064,-201.0,0.0001551,2]
[403807671,1769547032073,-235.41480451,0.00015511,2]
[403807672,1769547032083,-300.0,0.00015511,2]
[403807673,1769547032093,-2553.93048328,0.00015511,2]
[403807674,1769547032102,-250.0,0.00015522,2]
[403807675,1769547032111,-300.0,0.00015523,2]
[403807676,1769547032121,-200.0,0.00015524,3]
[403807677,1769547032133,-239.88573265,0.00015524,3]
[403807678,1769547032142,-500.0,0.00015524,3]
[403807679,1769547032152,-500.0,0.00015524,3]
[403807680,1769547032161,-450.0,0.00015524,3]
[403807681,1769547032170,-937.0,0.00015524,3]
[403807682,1769547032179,-500.0,0.00015524,3]
[403807683,1769547032199,-462.0,0.00015524,3]
[403807684,1769547032209,-500.0,0.00015524,3]
[403807685,1769547032219,-500.0,0.00015524,3]
[403807686,1769547032229,-483.0,0.00015524,3]
[403807687,1769547032238,-150.0,0.00015524,3]
[403807688,1769547032247,-430.0,0.00015524,3]
[403807689,1769547032256,-500.0,0.00015524,3]
[403807690,1769547032266,-229.5686788,0.00015524,3]
[403807691,1769547032275,-500.0,0.00015524,2]
[403807692,1769547032284,-682.0,0.00015524,3]
[403807693,1769547032294,-500.0,0.00015524,3]
[403807694,1769547032303,-211.00912463,0.00015524,3]
[403807695,1769547032312,-635.0,0.00015524,3]
[403807696,1769547032321,-500.0,0.00015524,3]
[403807697,1769547032330,-505.0,0.00015524,3]
[403807698,1769547032339,-150.0,0.00015524,3]
[403807699,1769547032349,-500.0,0.00015524,3]
[403807700,1769547032358,-1354.14,0.00015524,2]
[403807701,1769547032368,-425.0,0.00015534,2]
[403807702,1769547032379,-500.0,0.00015534,2]
[403807703,1769547032388,-500.0,0.00015544,2]
[403807704,1769547032397,-500.0,0.00015544,2]
[403807705,1769547032407,-500.0,0.00015544,2]
[403807706,1769547032416,-500.0,0.00015544,2]
[403807707,1769547032425,-500.0,0.00015544,2]
[403807708,1769547032435,-500.0,0.00015544,2]
[403807709,1769547032444,-565.0,0.00015544,2]
[403807710,1769547032454,-500.0,0.00015544,2]
[403807711,1769547032464,-500.0,0.00015544,2]
[403807712,1769547032474,-624.41848369,0.00015544,2]
[403807713,1769547032483,-500.0,0.00015544,2]
[403807714,1769547032493,-500.0,0.00015544,2]
[403807715,1769547032503,-21363.17135434,0.00015545,2]
[403807716,1769547032513,-200.0,0.00015578,3]
[403807717,1769547032523,-500.0,0.00015578,3]
[403807718,1769547032533,-500.0,0.00015578,3]
[403807719,1769547032547,-450.0,0.00015578,3]
[403807720,1769547032557,-937.0,0.00015578,3]
[403807721,1769547032567,-500.0,0.00015578,3]
[403807722,1769547032578,-462.0,0.00015578,3]
[403807723,1769547032589,-500.0,0.00015578,3]
[403807724,1769547032600,-500.0,0.00015578,3]
[403807725,1769547032612,-483.0,0.00015578,3]
[403807726,1769547032623,-207.37066984,0.00015578,3]
[403807727,1769547032634,-430.0,0.00015578,3]
[403807728,1769547032644,-500.0,0.00015578,3]
[403807729,1769547032654,-500.0,0.00015578,2]
[403807730,1769547032664,-682.0,0.00015578,3]
[403807731,1769547032674,-500.0,0.00015578,3]
[403807732,1769547032685,-635.0,0.00015578,3]
[403807733,1769547032696,-563.64353549,0.00015578,3]
[403807734,1769547032706,-505.0,0.00015578,3]
[403807735,1769547032718,-150.0,0.00015578,3]
[403807736,1769547032734,-500.0,0.00015578,3]
[403807737,1769547032745,-9736.50405118,0.00015589,2]
[403807738,1769547032755,-425.0,0.00015589,2]
[403807739,1769547032769,-150.00242007,0.00015596,2]
[403807740,1769547032779,-206.35426011,0.00015623,2]
[403807741,1769547032789,-406.38715913,0.00015623,2]
[403807742,1769547032801,-149422.87827962,0.00015624,2]
[403807743,1769547032815,-50441.16531137,0.00015624,2]
[403807744,1769547032827,-31710.73827477,0.00015624,2]
[403807745,1769547032837,-200.0,0.00015633,3]
[403807746,1769547032848,-500.0,0.00015633,3]
[403807747,1769547032860,-500.0,0.00015633,3]
[403807748,1769547032871,-450.0,0.00015633,3]
[403807749,1769547032881,-937.0,0.00015633,3]
[403807750,1769547032891,-500.0,0.00015633,3]
[403807751,1769547032902,-462.0,0.00015633,3]
[403807752,1769547032912,-500.0,0.00015633,3]
[403807753,1769547032928,-500.0,0.00015633,3]
[403807754,1769547032937,-483.0,0.00015633,3]
[403807755,1769547032948,-430.0,0.00015633,3]
[403807756,1769547032958,-500.0,0.00015633,3]
[403807757,1769547032970,-500.0,0.00015633,2]
[403807758,1769547032981,-682.0,0.00015633,3]
[403807759,1769547032991,-500.0,0.00015633,3]
[403807760,1769547033001,-635.0,0.00015633,3]
[403807761,1769547033011,-505.0,0.00015633,3]
[403807762,1769547033021,-248.52684303,0.00015633,3]
[403807763,1769547033031,-500.0,0.00015633,3]
[403807764,1769547033041,-204.21914209,0.00015635,2]
[403807765,1769547033051,-500.0,0.00015635,2]
[403807766,1769547033061,-151.0,0.00015635,2]
[403807767,1769547033071,-151.0,0.00015635,2]
[403807768,1769547033081,-151.0,0.00015635,2]
[403807769,1769547033091,-151.0,0.00015635,2]
[403807770,1769547033102,-151.0,0.00015635,2]
[403807771,1769547033112,-151.0,0.00015635,2]
[403807772,1769547033122,-151.0,0.00015635,2]
[403807773,1769547033133,-151.0,0.00015635,2]
[403807774,1769547033144,-169.59183395,0.00015635,2]
[403807775,1769547033155,-151.0,0.00015641,2]
[403807776,1769547033164,-500.0,0.00015643,2]
[403807777,1769547033174,-500.0,0.00015643,2]
[403807778,1769547033184,-500.0,0.00015643,2]
[403807779,1769547033195,-500.0,0.00015643,2]
[403807780,1769547033206,-500.0,0.00015643,2]
[403807781,1769547033215,-500.0,0.00015643,2]
[403807782,1769547033225,-365.53235564,0.00015643,2]
[403807783,1769547033878,-134.46764436,0.00015643,2]
[403807784,1769547033888,-500.0,0.00015643,2]
[403807785,1769547033897,-348.04142777,0.00015643,2]
[403807786,1769547033906,-271.90901464,0.00015643,2]
[403807787,1769547033932,-500.0,0.0001537,2]
[403807788,1769547033941,-228.09098536,0.00015643,2]
[403807789,1769547033951,-82.67901464,0.00015643,2]
[403807790,1769547033961,-426.4594105,0.00015643,2]
[403807791,1769547033970,-500.0,0.00015643,2]
[403807792,1769547033979,-500.0,0.00015643,2]
[403807793,1769547033989,-500.0,0.00015643,2]
[403807794,1769547033998,-447.92866097,0.00015643,2]
[403807795,1769547034007,-3899.10085398,0.00015644,2]
[403807805,1769547037938,-150.0,0.0001537,2]
[403807806,1769547037948,-140.709983,0.00015425,2]
[403807807,1769547037960,-359.290017,0.00015425,2]
[403807808,1769547037969,-92.4781648,0.0001548,2]
[403807809,1769547038049,-267.07257774,0.0001548,2]
[403807810,1769547038059,-500.0,0.00015589,2]
[403807811,1769547038068,-425.0,0.00015644,2]
[403807812,1769547038078,-344.43229963,0.00015644,2]
[403807813,1769547038158,-155.56770037,0.00015644,2]
[403807814,1769547038169,-682522.23593989,0.00015644,2]
[403807815,1769547038186,-3452.2615212,0.00015645,2]
[403807816,1769547038200,-5482.3277463,0.00015645,2]
[403807817,1769547038210,-1115.9768665,0.00015645,2]
[403807819,1769547038220,-151.0,0.0001566,2]
[403807821,1769547038229,-151.0,0.0001566,2]
[403807822,1769547038239,-151.0,0.0001566,2]
[403807823,1769547038249,-151.0,0.00015661,2]
[403807824,1769547038259,-151.0,0.00015661,2]
[403807825,1769547038269,-151.0,0.00015661,2]
[403807827,1769547038279,-151.0,0.00015661,2]
[403807829,1769547038289,-1157.15,0.00015665,2]
[403807831,1769547038299,-27025.2186773,0.0001567,2]
[403807832,1769547038309,-499.0,0.00015673,2]
[403807834,1769547038319,-1524.65,0.00015674,2]
[403807835,1769547038329,-166.66,0.00015676,2]
[403807837,1769547038339,-198.18,0.00015688,3]
[403807839,1769547038349,-200.0,0.00015688,3]
[403807840,1769547038359,-500.0,0.00015688,3]
[403807841,1769547038369,-937.0,0.00015688,3]
[403807842,1769547038378,-500.0,0.00015688,3]
[403807843,1769547038390,-483.0,0.00015688,3]
[403807844,1769547038400,-430.0,0.00015688,3]
[403807845,1769547038409,-289.91292763,0.00015688,3]
[403807846,1769547038419,-500.0,0.00015688,2]
[403807847,1769547038428,-682.0,0.00015688,3]
[403807848,1769547038438,-500.0,0.00015688,3]
[403807849,1769547038448,-635.0,0.00015688,3]
[403807850,1769547038457,-505.0,0.00015688,3]
[403807851,1769547038466,-500.0,0.00015688,3]
[403807852,1769547038476,-425.0,0.00015699,2]
[403807853,1769547038486,-500.0,0.00015699,2]
[403807854,1769547038496,-151.0,0.00015721,2]
[403807855,1769547038506,-898.44608791,0.00015728,2]
[403807856,1769547038516,-200.0,0.00015743,3]
[403807857,1769547038526,-500.0,0.00015743,3]
[403807858,1769547038536,-937.0,0.00015743,3]
[403807859,1769547038546,-500.0,0.00015743,3]
[403807860,1769547038556,-483.0,0.00015743,3]
[403807861,1769547038566,-430.0,0.00015743,3]
[403807862,1769547038576,-500.0,0.00015743,2]
[403807863,1769547038585,-682.0,0.00015743,3]
[403807864,1769547038595,-500.0,0.00015743,3]
[403807865,1769547038605,-635.0,0.00015743,3]
[403807866,1769547038615,-505.0,0.00015743,3]
[403807867,1769547038624,-500.0,0.00015743,3]
[403807868,1769547038634,-500.0,0.00015743,2]
[403807869,1769547038644,-500.0,0.00015743,2]
[403807870,1769547038653,-500.0,0.00015743,2]
[403807871,1769547038663,-500.0,0.00015743,2]
[403807872,1769547038672,-500.0,0.00015743,2]
[403807873,1769547038682,-500.0,0.00015743,2]
[403807874,1769547038692,-387.86299389,0.00015743,2]
[403807875,1769547038701,-500.0,0.00015743,2]
[403807876,1769547038711,-500.0,0.00015743,2]
[403807877,1769547038723,-500.0,0.00015743,2]
[403807878,1769547038738,-500.0,0.00015743,2]
[403807879,1769547038748,-500.0,0.00015743,2]
[403807880,1769547038758,-366.70371555,0.00015744,2]
[403807881,1769547038770,-500.0,0.00015744,2]
[403807882,1769547038780,-500.0,0.00015744,2]
[403807883,1769547038790,-500.0,0.00015744,2]
[403807884,1769547038801,-194.0,0.00015747,2]
[403807885,1769547038810,-425.0,0.00015754,2]
[403807886,1769547038820,-397.34853095,0.00015754,2]
[403807887,1769547038832,-272.0,0.00015755,2]
[403807888,1769547038841,-4001.32077613,0.00015776,2]
[403807889,1769547038851,-1074.84,0.00015788,2]
[403807890,1769547038862,-216.03176352,0.00015798,3]
[403807891,1769547038871,-265.19440411,0.00015798,3]
[403807892,1769547038881,-937.0,0.00015798,3]
[403807893,1769547038891,-500.0,0.00015798,3]
[403807894,1769547038901,-483.0,0.00015798,3]
[403807895,1769547038911,-430.0,0.00015798,3]
[403807896,1769547038921,-500.0,0.00015798,2]
[403807897,1769547038932,-682.0,0.00015798,3]
[403807898,1769547038942,-602.887661,0.00015798,3]
[403807899,1769547038951,-635.0,0.00015798,3]
[403807900,1769547038961,-505.0,0.00015798,3]
[403807901,1769547038971,-500.0,0.00015798,3]
[403807902,1769547038982,-1354.14,0.00015798,2]
[403807903,1769547038992,-500.0,0.000158,5]
[403807904,1769547039002,-21363.17135425,0.00015807,2]
[403807905,1769547039011,-425.0,0.00015808,2]
[403807906,1769547039021,-500.0,0.00015818,2]
[403807907,1769547039031,-745.0008854,0.00015821,2]
[403807912,1769547040374,-1866.07550372,0.00015821,2]
[403807913,1769547040392,-1076.34565379,0.00015821,2]
[403807914,1769547040403,-8171.41475989,0.00015821,2]
[403807915,1769547040413,-500.0,0.00015845,2]
[403807917,1769547040423,-500.0,0.00015845,2]
[403807918,1769547040432,-500.0,0.00015845,2]
[403807920,1769547040442,-500.0,0.00015845,2]
[403807922,1769547040451,-358.07323626,0.00015845,2]
[403807924,1769547040460,-500.0,0.00015845,2]
[403807926,1769547040471,-440.51796879,0.00015845,2]
[403807929,1769547040481,-2069.88710862,0.0001585,2]
[403807932,1769547040490,-937.0,0.00015852,3]
[403807935,1769547040500,-640.96088901,0.00015852,3]
[403807938,1769547040509,-483.0,0.00015852,3]
[403807941,1769547040518,-430.0,0.00015852,3]
[403807944,1769547040532,-500.0,0.00015852,2]
[403807947,1769547040542,-682.0,0.00015852,3]
[403807951,1769547040552,-635.0,0.00015852,3]
[403807954,1769547040562,-505.0,0.00015852,3]
[403807956,1769547040571,-500.0,0.00015852,3]
[403807958,1769547040581,-425.0,0.00015863,2]
[403807961,1769547040590,-981.0,0.0001587,2]
[403807964,1769547040599,-565.18140203,0.00015871,2]
[403807965,1769547040610,-419.64,0.00015887,2]
[403807966,1769547040622,-206.0,0.000159,2]
[403807967,1769547040633,-1000.0,0.000159,5]
[403807968,1769547040643,-1803.0,0.00015901,2]
[403807969,1769547040653,-937.0,0.00015907,3]
[403807970,1769547040663,-483.0,0.00015907,3]
[403807971,1769547040673,-430.0,0.00015907,3]
[403807972,1769547040682,-500.0,0.00015907,2]
[403807973,1769547040692,-682.0,0.00015907,3]
[403807974,1769547040704,-635.0,0.00015907,3]
[403807975,1769547040714,-505.0,0.00015907,3]
[403807976,1769547040725,-500.0,0.00015907,3]
[403807977,1769547040735,-321.0,0.00015908,2]
[403807978,1769547040745,-1000.0,0.00015918,2]
[403807979,1769547040755,-425.0,0.00015918,2]
[403807980,1769547040768,-337.15233997,0.00015931,2]
[403807981,1769547040779,-1295.35817964,0.00015933,2]
[403807982,1769547040789,-1538.0,0.00015952,2]
[403807983,1769547040799,-166.66,0.00015952,2]
[403807984,1769547040809,-937.0,0.00015962,3]
[403807985,1769547040820,-483.0,0.00015962,3]
[403807986,1769547040830,-430.0,0.00015962,3]
[403807987,1769547040840,-500.0,0.00015962,2]
[403807988,1769547040850,-682.0,0.00015962,3]